Workbook

Sheet Sheet1
B1: DNA lab code | C1: Sex: Queen (FQ), Worker (Fw), Male (M) | D1: “Population” | E1: Locality | F1: Date of colection | G1: Latitude (decimal degrees) | H1: Longitude (decimal degrees) | I1: COI haplotype | J1: Genbank Accession Numbers | K1: RAD sequencing lane | L1: Barcode | M1: Total reads | N1: Retained reads (process_radtags) | O1: Mapped reads properly paired (bowtie2) | P1: % mapped reads | Q1: Removed individuals (few reads) | R1: Possible escapes from greenhouses (males) | S1: Possible escapes from greenhouses (females) | T1: Potential hybrids | U1: type_code | V1: STRUCTURE/ CLUMPP ancestry proportion (1) | W1: STRUCTURE/ CLUMPP ancestry proportion (2) | X1: STRUCTURE/ CLUMPP ancestry proportion (3) | Y1: INTROGRESS Hybrid index | Z1: NEWHYBRIDS Pure_commercial | AA1: NEWHYBRIDS Pure_wild | AB1: NEWHYBRIDS F1 | AC1: NEWHYBRIDS F2 | AD1: NEWHYBRIDS Bx_commercial | AE1: NEWHYBRIDS Bx_wild | AF1: Significant D-stat (comercial > near) | AG1: Significant D-stat more than 4 in C (or 1 in S) individuals (comercial > near)
A2: 1 | B2: BTL_226 | C2: Fw | D2: NNear | E2: Casalinhos de Alfaiate | F2: 28/29jun2014 | G2: 39.1012222° | H2: -009.3440278° | I2: H1 | J2: MHO18631 | K2: Lane1 | L2: TTAAT | M2: 10169696 | N2: 9621268 | O2: 5754614 | P2: =(O2/N2)*100 -> 59.81138869 | U2: W | V2: 0.999 | W2: 0.001 | X2: 0 | Y2: 0.61411961 | Z2: 0 | AA2: 1 | AB2: 0 | AC2: 0 | AD2: 0 | AE2: 0 | AF2: NO | AG2: NO
A3: 2 | B3: BTL_227 | C3: Fw | D3: NNear | E3: Casalinhos de Alfaiate | F3: 28/29jun2014 | G3: 39.1012222° | H3: -009.3440278° | I3: H1 | J3: MHO18632 | K3: Lane1 | L3: CCTTG | M3: 12660608 | N3: 12195391 | O3: 5681152 | P3: =(O3/N3)*100 -> 46.58441865 | U3: W | V3: 1 | W3: 0 | X3: 0 | Y3: 0.62403069 | Z3: 0 | AA3: 1 | AB3: 0 | AC3: 0 | AD3: 0 | AE3: 0 | AF3: NO | AG3: NO
A4: 3 | B4: BTL_236 | C4: Fw | D4: NNear | E4: Ponte de Rol | F4: 2014-07-10 | G4: 39.0965556° | H4: -009.3205000° | I4: H1 | J4: MHO18634 | K4: Lane1 | L4: ATTAG | M4: 12164642 | N4: 11839416 | O4: 7263002 | P4: =(O4/N4)*100 -> 61.34594814 | U4: W | V4: 0.9966 | W4: 0.0034 | X4: 0 | Y4: 0.62066877 | Z4: 0 | AA4: 1 | AB4: 0 | AC4: 0 | AD4: 0 | AE4: 0 | AF4: NO | AG4: NO
A5: 4 | B5: BTL_237 | C5: Fw | D5: NNear | E5: Ponte de Rol | F5: 2014-07-10 | G5: 39.0965556° | H5: -009.3205000° | I5: H10 | J5: MHO18635 | K5: Lane1 | L5: GTTGT | M5: 14698766 | N5: 14103416 | O5: 8368840 | P5: =(O5/N5)*100 -> 59.33909912 | U5: W | V5: 0.999 | W5: 0.001 | X5: 0 | Y5: 0.607846165 | Z5: 0 | AA5: 1 | AB5: 0 | AC5: 0 | AD5: 0 | AE5: 0 | AF5: NO | AG5: NO
A6: 5 | B6: BTL_239 | C6: M | D6: NNear | E6: Casalinhos de Alfaiata | F6: 2014-07-10 | G6: 39.1085000° | H6: -009.3418889° | I6: H1 | J6: MHO18636 | K6: Lane1 | L6: AAAAA | M6: 8258462 | N6: 7968781 | O6: 4880462 | P6: =(O6/N6)*100 -> 61.24477508
A7: 6 | B7: BTL_240 | C7: M | D7: NNear | E7: Charneca | F7: 2014-07-10 | G7: 39.1207222° | H7: -009.3391389° | I7: H1 | J7: MHO18637 | K7: Lane1 | L7: TGACC | M7: 5759856 | N7: 5583106 | O7: 3336684 | P7: =(O7/N7)*100 -> 59.76393785 | R7: x
A8: 7 | B8: BTL_242 | C8: Fw | D8: NNear | E8: Casalinhos de Alfaiate | F8: 2014-07-10 | G8: 39.1051944° | H8: -009.3434167° | I8: H1 | J8: MHO18638 | K8: Lane1 | L8: GGTTC | M8: 20799818 | N8: 20250258 | O8: 12326230 | P8: =(O8/N8)*100 -> 60.86949608 | U8: W | V8: 0.998 | W8: 0 | X8: 0.002 | Y8: 0.624011745 | Z8: 0 | AA8: 1 | AB8: 0 | AC8: 0 | AD8: 0 | AE8: 0 | AF8: NO | AG8: NO
A9: 8 | B9: BTL_243 | C9: Fw | D9: NNear | E9: Casalinhos de Alfaiate | F9: 2014-07-10 | G9: 39.1051944° | H9: -009.3434167° | I9: H1 | J9: MHO18639 | K9: Lane1 | L9: GGGGA | M9: 9059234 | N9: 8777733 | O9: 5464330 | P9: =(O9/N9)*100 -> 62.25217832 | S9: x | U9: E | V9: 0.1292 | W9: 0.8708 | X9: 0 | Y9: 0.38339997 | Z9: 0 | AA9: 0 | AB9: 0 | AC9: 0.98353 | AD9: 0.01647 | AE9: 0 | AF9: NO | AG9: NO
A10: 9 | B10: BTL_244 | C10: Fw | D10: NNear | E10: Silveira | F10: 2014-07-10 | G10: 39.1212500° | H10: -009.3673611° | I10: H3 | J10: MHO18640 | K10: Lane1 | L10: TAATG | M10: 4643662 | N10: 4306763 | O10: 2570420 | P10: =(O10/N10)*100 -> 59.6833399 | S10: x | U10: E | V10: 0 | W10: 1 | X10: 0 | Y10: 0.30546236 | Z10: 0.36258 | AA10: 0 | AB10: 0 | AC10: 0.00689 | AD10: 0.63053 | AE10: 0 | AF10: YES
A11: 10 | B11: BTL_245 | C11: Fw | D11: NNear | E11: Silveira | F11: 2014-07-10 | G11: 39.1212500° | H11: -009.3673611° | I11: H1 | J11: MHO18641 | K11: Lane1 | L11: GTGTG | M11: 5350022 | N11: 5027886 | O11: 3018006 | P11: =(O11/N11)*100 -> 60.02534664 | U11: W | V11: 0.999 | W11: 0.001 | X11: 0 | Y11: 0.617891025 | Z11: 0 | AA11: 0.99827 | AB11: 0 | AC11: 0 | AD11: 0 | AE11: 0.00173 | AF11: NO | AG11: NO
A12: 11 | B12: BTL_246 | C12: Fw | D12: NNear | E12: Silveira | F12: 2014-07-10 | G12: 39.1212500° | H12: -009.3673611° | I12: H1 | J12: MHO18642 | K12: Lane1 | L12: GCTAA | M12: 1707082 | N12: 1642153 | O12: 952692 | P12: =(O12/N12)*100 -> 58.01481348 | Q12: x
A13: 12 | B13: BTL_247 | C13: Fw | D13: NNear | E13: Ponte de Rol | F13: 2014-07-10 | G13: 39.1044167° | H13: -009.3165278° | I13: H3 | J13: MHO18643 | K13: Lane1 | L13: AGTCA | M13: 14122426 | N13: 13793404 | O13: 8410284 | P13: =(O13/N13)*100 -> 60.97323039 | T13: x | U13: H | V13: 0.53 | W13: 0.469 | X13: 0.001 | Y13: 0.491692545 | Z13: 0 | AA13: 0 | AB13: 2e-05 | AC13: 0.00273 | AD13: 0 | AE13: 0.99725 | AF13: NO | AG13: NO
A14: 13 | B14: BTL_249 | C14: Fw | D14: NNear | E14: Ponte de Rol | F14: 2014-07-10 | G14: 39.1044167° | H14: -009.3165278° | I14: H3 | J14: MHO18644 | K14: Lane1 | L14: TAGCA | M14: 8596264 | N14: 8355226 | O14: 5319460 | P14: =(O14/N14)*100 -> 63.66626109 | S14: x | U14: E | V14: 0.1782 | W14: 0.8218 | X14: 0 | Y14: 0.38582581 | Z14: 0 | AA14: 0 | AB14: 0 | AC14: 0.99986 | AD14: 0.00014 | AE14: 0 | AF14: NO | AG14: NO
A15: 14 | B15: BTL_250 | C15: Fw | D15: NNear | E15: Silveira | F15: 2014-07-10 | G15: 39.1157222° | H15: -009.3682778° | I15: H1 | J15: MHO18645 | K15: Lane1 | L15: CTTCC | M15: 10612882 | N15: 10285492 | O15: 6096182 | P15: =(O15/N15)*100 -> 59.269717 | U15: W | V15: 1 | W15: 0 | X15: 0 | Y15: 0.614749765 | Z15: 0 | AA15: 0.98202 | AB15: 0 | AC15: 0 | AD15: 0 | AE15: 0.01798 | AF15: NO | AG15: NO
A16: 15 | B16: BTL_251 | C16: Fw | D16: NNear | E16: Silveira | F16: 2014-07-10 | G16: 39.1157222° | H16: -009.3682778° | I16: H1 | J16: MHO18646 | K16: Lane1 | L16: TCAGA | M16: 3065620 | N16: 2932368 | O16: 1796196 | P16: =(O16/N16)*100 -> 61.25411272 | U16: W | V16: 1 | W16: 0 | X16: 0 | Y16: 0.646294695 | Z16: 0 | AA16: 1 | AB16: 0 | AC16: 0 | AD16: 0 | AE16: 0 | AF16: YES
A17: 16 | B17: BTL_252 | C17: Fw | D17: NNear | E17: Silveira | F17: 2014-07-10 | G17: 39.1157222° | H17: -009.3682778° | I17: H3 | J17: MHO18647 | K17: Lane1 | L17: CGTAT | M17: 19729026 | N17: 18189587 | O17: 10669936 | P17: =(O17/N17)*100 -> 58.65958364 | S17: x | U17: E | V17: 0.0019 | W17: 0.9981 | X17: 0 | Y17: 0.37051481 | Z17: 0 | AA17: 0 | AB17: 0 | AC17: 0.9659 | AD17: 0.0341 | AE17: 0 | AF17: YES
A18: 17 | B18: BTL_254 | C18: Fw | D18: NNear | E18: Ponte de Rol | F18: 2014-07-10 | G18: 39.1015000° | H18: -009.3180833° | I18: H1 | J18: MHO18648 | K18: Lane1 | L18: TGGTT | M18: 2146142 | N18: 1742035 | O18: 501306 | P18: =(O18/N18)*100 -> 28.77703376 | Q18: x
A19: 18 | B19: BTL_256 | C19: M | D19: NNear | E19: Ponte de Rol | F19: 2014-07-10 | G19: 39.1015000° | H19: -009.3180833° | I19: H1 | J19: MHO18649 | K19: Lane1 | L19: TTGGC | M19: 5534252 | N19: 5301397 | O19: 3255284 | P19: =(O19/N19)*100 -> 61.40426759
A20: 19 | B20: BT_338 | C20: M | D20: NNear | E20: Silveira | F20: 2014-06-19 | G20: 39.1172306° | H20: -009.3645278° | I20: H3 | J20: MHO18609 | K20: Lane1 | L20: AACCC | M20: 4839682 | N20: 4687646 | O20: 2841042 | P20: =(O20/N20)*100 -> 60.60700829 | R20: x
A21: 20 | B21: BT_341 | C21: M | D21: NNear | E21: Silveira | F21: 2014-06-19 | G21: 39.1172306° | H21: -009.3645278° | I21: H1 | J21: MHO18610 | K21: Lane1 | L21: AATTT | M21: 6856858 | N21: 6452304 | O21: 3817654 | P21: =(O21/N21)*100 -> 59.167299 | R21: x
A22: 21 | B22: BTL_001 | C22: Fw | D22: NFar | E22: Lage,Oeiras | F22: 2014-04-10 | G22: 38.7092667° | H22: -009.3117167° | I22: H1 | J22: MHO18622 | K22: Lane1 | L22: CCGGT | M22: 7346304 | N22: 7111056 | O22: 4258414 | P22: =(O22/N22)*100 -> 59.88441098 | U22: W | V22: 1 | W22: 0 | X22: 0 | Y22: 0.619777725 | Z22: 0 | AA22: 1 | AB22: 0 | AC22: 0 | AD22: 0 | AE22: 0 | AF22: NO | AG22: NO
A23: 22 | B23: BTL_021 | C23: Fw | D23: NFar | E23: Zambujeiro, Cascais | F23: 2014-04-27 | G23: 38.7430000° | H23: -009.4307000° | I23: H1 | J23: MHO18623 | K23: Lane1 | L23: GTCAC | M23: 1968792 | N23: 1872510 | O23: 1055220 | P23: =(O23/N23)*100 -> 56.3532371 | Q23: x
A24: 23 | B24: BTL_030 | C24: Fw | D24: NFar | E24: Maxial, Torres Vedras | F24: 2014-04-28 | G24: 39.1422778° | H24: -009.1736667° | I24: H1 | J24: MHO18624 | K24: Lane1 | L24: AAGGG | M24: 8088672 | N24: 7850702 | O24: 4789204 | P24: =(O24/N24)*100 -> 61.00351281 | T24: x | U24: H | V24: 0.5364 | W24: 0.4636 | X24: 0 | Y24: 0.4902907 | Z24: 0 | AA24: 0 | AB24: 0 | AC24: 0.9998 | AD24: 0 | AE24: 0.0002 | AF24: NO | AG24: NO
A25: 24 | B25: BTL_033 | C25: Fw | D25: NFar | E25: Maxial, Torres Vedras | F25: 2014-04-28 | G25: 39.1444722° | H25: -009.1805556° | I25: H1 | J25: MHO18625 | K25: Lane1 | L25: ACCAT | M25: 4186188 | N25: 3847360 | O25: 2094706 | P25: =(O25/N25)*100 -> 54.44528196 | U25: W | V25: 1 | W25: 0 | X25: 0 | Y25: 0.77730843 | Z25: 0 | AA25: 1 | AB25: 0 | AC25: 0 | AD25: 0 | AE25: 0 | AF25: NO | AG25: NO
A26: 25 | B26: BTL_037 | C26: Fw | D26: NFar | E26: Alta de Lisboa | F26: 2014-05-01 | G26: 38.7681167° | H26: -009.1480167° | I26: H1 | J26: MHO18626 | K26: Lane1 | L26: CTCTT | M26: 9251988 | N26: 8770867 | O26: 4913908 | P26: =(O26/N26)*100 -> 56.02533934 | U26: W | V26: 1 | W26: 0 | X26: 0 | Y26: 0.827425035 | Z26: 0 | AA26: 1 | AB26: 0 | AC26: 0 | AD26: 0 | AE26: 0 | AF26: NO | AG26: NO
A27: 26 | B27: BTL_059 | C27: Fw | D27: NFar | E27: Alta de Lisboa | F27: 2014-05-13 | G27: 38.7681167° | H27: -009.1480167° | I27: H1 | J27: MHO18627 | K27: Lane1 | L27: TCTCT | M27: 15162584 | N27: 14508026 | O27: 8652690 | P27: =(O27/N27)*100 -> 59.64071198 | U27: W | V27: 0.995 | W27: 0.004 | X27: 0.001 | Y27: 0.718295255 | Z27: 0 | AA27: 1 | AB27: 0 | AC27: 0 | AD27: 0 | AE27: 0 | AF27: NO | AG27: NO
A28: 27 | B28: BTL_201 | C28: Fw | D28: NFar | E28: Foz do Arelho, Lagoa de Óbidos | F28: 2014-06-11 | G28: 39.4291389° | H28: -009.2234722° | I28: H1 | J28: MHO18630 | K28: Lane1 | L28: TTTTA | M28: 14787532 | N28: 14167207 | O28: 8373646 | P28: =(O28/N28)*100 -> 59.10583505 | U28: W | V28: 0.999 | W28: 0 | X28: 0.001 | Y28: 0.819822265 | Z28: 0 | AA28: 1 | AB28: 0 | AC28: 0 | AD28: 0 | AE28: 0 | AF28: NO | AG28: NO
A29: 28 | B29: BTL_230 | C29: Fw | D29: NFar | E29: Sobral da Abelheira | F29: 28/29jun2014 | G29: 38.9932417° | H29: -009.3170444° | I29: H1 | J29: MHO18633 | K29: Lane1 | L29: ACACG | M29: 4227332 | N29: 4130699 | O29: 2523718 | P29: =(O29/N29)*100 -> 61.0966328 | U29: W | V29: 1 | W29: 0 | X29: 0 | Y29: 0.834457175 | Z29: 0 | AA29: 1 | AB29: 0 | AC29: 0 | AD29: 0 | AE29: 0 | AF29: NO | AG29: NO
A30: 29 | B30: BTL_274 | C30: Fw | D30: NFar | E30: Sarge | F30: 2014-07-17 | G30: 39.1043333° | H30: -009.2347778° | I30: H1 | J30: MHO18650 | K30: Lane1 | L30: AGGAC | M30: 8544912 | N30: 8360620 | O30: 5222278 | P30: =(O30/N30)*100 -> 62.46280778 | U30: W | V30: 0.9999 | W30: 0.0001 | X30: 0 | Y30: 0.755667055 | Z30: 0 | AA30: 1 | AB30: 0 | AC30: 0 | AD30: 0 | AE30: 0 | AF30: NO | AG30: NO
A31: 30 | B31: BTL_275 | C31: M | D31: NFar | E31: Sarge | F31: 2014-07-17 | G31: 39.1043333° | H31: -009.2347778° | I31: H1 | J31: MHO18651 | K31: Lane1 | L31: ACGTA | M31: 727272 | N31: 624977 | O31: 341922 | P31: =(O31/N31)*100 -> 54.70953331 | Q31: x
A32: 31 | B32: BTL_278 | C32: Fw | D32: NFar | E32: Portela | F32: 2014-07-17 | G32: 39.2448611° | H32: -009.1347778° | I32: H1 | J32: MHO18652 | K32: Lane1 | L32: TGTGG | M32: 16898876 | N32: 16338434 | O32: 9724544 | P32: =(O32/N32)*100 -> 59.51943742 | U32: W | V32: 0.998 | W32: 0.001 | X32: 0.001 | Y32: 0.716914755 | Z32: 0 | AA32: 1 | AB32: 0 | AC32: 0 | AD32: 0 | AE32: 0 | AF32: NO | AG32: NO
A33: 32 | B33: BTL_281 | C33: M | D33: NFar | E33: Cadaval | F33: 2014-07-17 | G33: 39.2404722° | H33: -009.0994444° | I33: H1 | J33: MHO18653 | K33: Lane1 | L33: CCAAC | M33: 8155612 | N33: 7901809 | O33: 4780860 | P33: =(O33/N33)*100 -> 60.50336069
A34: 33 | B34: BTL_282 | C34: M | D34: NFar | E34: Vilar | F34: 2014-07-17 | G34: 39.1888611° | H34: -009.1129444° | I34: H1 | J34: MHO18654 | K34: Lane1 | L34: AGAGT | M34: 4634858 | N34: 4261543 | O34: 2494674 | P34: =(O34/N34)*100 -> 58.53921925
A35: 34 | B35: BTL_283 | C35: M | D35: NFar | E35: Vila Verde dos Francos | F35: 2014-07-17 | G35: 39.1533889° | H35: -009.1125833° | I35: H1 | J35: MHO18655 | K35: Lane1 | L35: ATGCT | M35: 3289806 | N35: 3087380 | O35: 1895318 | P35: =(O35/N35)*100 -> 61.38920379
A36: 35 | B36: BTL_288 | C36: Fw | D36: NFar | E36: Vila Verde dos Francos | F36: 2014-07-17 | G36: 39.1533889° | H36: -009.1125833° | I36: H1 | J36: MHO18656 | K36: Lane1 | L36: CAACT | M36: 10468942 | N36: 10070127 | O36: 6041328 | P36: =(O36/N36)*100 -> 59.9925701 | U36: W | V36: 0.999 | W36: 0.001 | X36: 0 | Y36: 0.8225096 | Z36: 0 | AA36: 1 | AB36: 0 | AC36: 0 | AD36: 0 | AE36: 0 | AF36: NO | AG36: NO
A37: 36 | B37: BTL_297 | C37: Fw | D37: NFar | E37: Oeiras | F37: 2014-07-25 | G37: 38.6907889° | H37: -009.3139889° | I37: H1 | J37: MHO18657 | K37: Lane1 | L37: CAGTC | M37: 8489710 | N37: 8257735 | O37: 5231910 | P37: =(O37/N37)*100 -> 63.35768828 | U37: W | V37: 0.999 | W37: 0.001 | X37: 0 | Y37: 0.80497355 | Z37: 0 | AA37: 1 | AB37: 0 | AC37: 0 | AD37: 0 | AE37: 0 | AF37: NO | AG37: NO
A38: 37 | B38: BTL_324 | C38: FQ | D38: NFar | E38: Tapada da Ajuda | F38: 2014-04-13 | G38: 38.7076389° | H38: -009.1823056° | I38: H1 | J38: MHO18660 | K38: Lane1 | L38: TATAC | M38: 3328796 | N38: 3176285 | O38: 1883466 | P38: =(O38/N38)*100 -> 59.29776453 | U38: W | V38: 1 | W38: 0 | X38: 0 | Y38: 0.72024683 | Z38: 0 | AA38: 1 | AB38: 0 | AC38: 0 | AD38: 0 | AE38: 0 | AF38: NO | AG38: NO
A39: 38 | B39: BTL_327 | C39: Fw | D39: NFar | E39: Campos | F39: 2014-06-19 | G39: 38.9796333° | H39: -009.3597167° | I39: H1 | J39: MHO18662 | K39: Lane1 | L39: CATGA | M39: 8936336 | N39: 8727323 | O39: 5510382 | P39: =(O39/N39)*100 -> 63.13943004 | U39: W | V39: 0.996 | W39: 0.002 | X39: 0.002 | Y39: 0.73971536 | Z39: 0 | AA39: 1 | AB39: 0 | AC39: 0 | AD39: 0 | AE39: 0 | AF39: NO | AG39: NO
A40: 39 | B40: BTL_329 | C40: M | D40: NFar | E40: Murgeira | F40: 2014-06-19 | G40: 38.9632833° | H40: -009.3150000° | I40: H1 | J40: MHO18663 | K40: Lane1 | L40: ATATC | M40: 13913138 | N40: 13613786 | O40: 8437308 | P40: =(O40/N40)*100 -> 61.97620559
A41: 40 | B41: BTL_389 | C41: Fw | D41: NFar | F41: 2014-08-01 | G41: 38.9630000° | H41: -009.3158500° | I41: H1 | J41: MHO18673 | K41: Lane1 | L41: ACTGC | M41: 4063750 | N41: 3942590 | O41: 2456334 | P41: =(O41/N41)*100 -> 62.30254731 | U41: W | V41: 1 | W41: 0 | X41: 0 | Y41: 0.7714555 | Z41: 0 | AA41: 1 | AB41: 0 | AC41: 0 | AD41: 0 | AE41: 0 | AF41: NO | AG41: NO
A42: 41 | B42: BTL_321 | C42: FQ | D42: SNear | E42: Entrada da Barca | F42: 2014-03-26 | G42: 37.5497222° | H42: -008.7798194° | I42: H1 | J42: MHO18658 | K42: Lane2 | L42: AAAAA | M42: 4799002 | N42: 4475956 | O42: 2605100 | P42: =(O42/N42)*100 -> 58.20209135 | U42: W | V42: 0.999 | W42: 0 | X42: 0.001 | Y42: 0.615819765 | Z42: 0 | AA42: 1 | AB42: 0 | AC42: 0 | AD42: 0 | AE42: 0 | AF42: NO | AG42: NO
A43: 42 | B43: BTL_323 | C43: Fw | D43: SNear | E43: Entrada da Barca | F43: 2014-03-26 | G43: 37.5497222° | H43: -008.7798194° | I43: H1 | J43: MHO18659 | K43: Lane2 | L43: AGAGT | M43: 7316180 | N43: 6986251 | O43: 4329574 | P43: =(O43/N43)*100 -> 61.97278054 | U43: W | V43: 1 | W43: 0 | X43: 0 | Y43: 0.621980905 | Z43: 0 | AA43: 1 | AB43: 0 | AC43: 0 | AD43: 0 | AE43: 0 | AF43: NO | AG43: NO
A44: 43 | B44: BTL_326 | C44: Fw | D44: SNear | E44: Zambujeira do Mar | F44: 2014-06-16 | G44: 37.5254417° | H44: -008.7866972° | I44: H1 | J44: MHO18661 | K44: Lane2 | L44: AACCC | M44: 14072186 | N44: 13780847 | O44: 8937592 | P44: =(O44/N44)*100 -> 64.85517182 | U44: W | V44: 0.9959 | W44: 0.0031 | X44: 0.001 | Y44: 0.607039025 | Z44: 0 | AA44: 1 | AB44: 0 | AC44: 0 | AD44: 0 | AE44: 0 | AF44: NO | AG44: NO
A45: 44 | B45: BTL_343 | C45: FQ | D45: SNear | E45: Entrada da Barca | F45: 2014-06-16 | G45: 37.5515222° | H45: -008.7886361° | I45: H1 | J45: MHO18664 | K45: Lane2 | L45: ACTGC | M45: 2625530 | N45: 2528865 | O45: 1511832 | P45: =(O45/N45)*100 -> 59.78302519 | Q45: x
A46: 45 | B46: BTL_348 | C46: Fw | D46: SNear | E46: Entrada da Barca | F46: 2014-06-16 | G46: 37.5515222° | H46: -008.7886361° | I46: H1 | J46: MHO18665 | K46: Lane2 | L46: CCAAC | M46: 5982840 | N46: 5796355 | O46: 3429216 | P46: =(O46/N46)*100 -> 59.16159379 | U46: W | V46: 1 | W46: 0 | X46: 0 | Y46: 0.613409595 | Z46: 0 | AA46: 0.99969 | AB46: 0 | AC46: 0 | AD46: 0 | AE46: 0.00031 | AF46: YES with Central far
A47: 46 | B47: BT_345 | C47: Fw | D47: SNear | E47: Entrada da Barca | F47: 2014-06-16 | G47: 37.5515222° | H47: -008.7886361° | I47: H1 | J47: MHO18612 | K47: Lane2 | L47: AATTT | M47: 2960958 | N47: 2858153 | O47: 1697086 | P47: =(O47/N47)*100 -> 59.37701726 | U47: W | V47: 0.999 | W47: 0.001 | X47: 0 | Y47: 0.60601879 | Z47: 0 | AA47: 0.99714 | AB47: 0 | AC47: 0 | AD47: 0 | AE47: 0.00286 | AF47: NO | AG47: NO
A48: 47 | B48: BTL_351 | C48: Fw | D48: SFar | E48: Fataca | F48: 2014-06-15 | G48: 37.5895500° | H48: -008.7373667° | I48: H8 | J48: MHO18666 | K48: Lane2 | L48: TGTGG | M48: 7645078 | N48: 7484634 | O48: 4356142 | P48: =(O48/N48)*100 -> 58.20113582 | U48: W | V48: 0.8883 | W48: 0.1117 | X48: 0 | Y48: 0.586306355 | Z48: 0 | AA48: 0.99996 | AB48: 0 | AC48: 0 | AD48: 0 | AE48: 4e-05 | AF48: NO | AG48: NO
A49: 48 | B49: BTL_352 | C49: Fw | D49: SFar | E49: Fataca | F49: 2014-06-15 | G49: 37.5895500° | H49: -008.7373667° | I49: H1 | J49: MHO18667 | K49: Lane2 | L49: TCCTC | M49: 5459718 | N49: 5256348 | O49: 3072832 | P49: =(O49/N49)*100 -> 58.45944751 | U49: W | V49: 1 | W49: 0 | X49: 0 | Y49: 0.615269655 | Z49: 0 | AA49: 1 | AB49: 0 | AC49: 0 | AD49: 0 | AE49: 0 | AF49: NO | AG49: NO
A50: 49 | B50: BTL_353 | C50: Fw | D50: SFar | E50: Fataca | F50: 2014-06-15 | G50: 37.5895500° | H50: -008.7373667° | I50: H1 | J50: MHO18668 | K50: Lane2 | L50: GCTAA | M50: 5842852 | N50: 5502165 | O50: 3155298 | P50: =(O50/N50)*100 -> 57.34648089 | U50: W | V50: 0.999 | W50: 0.001 | X50: 0 | Y50: 0.61998429 | Z50: 0 | AA50: 1 | AB50: 0 | AC50: 0 | AD50: 0 | AE50: 0 | AF50: NO | AG50: NO
A51: 50 | B51: BTL_354 | C51: Fw | D51: SFar | E51: Fataca | F51: 2014-06-15 | G51: 37.5895500° | H51: -008.7373667° | I51: H1 | J51: MHO18669 | K51: Lane2 | L51: AGTCA | M51: 7043252 | N51: 6818296 | O51: 4205640 | P51: =(O51/N51)*100 -> 61.68168704 | U51: W | V51: 0.999 | W51: 0.001 | X51: 0 | Y51: 0.608741765 | Z51: 0 | AA51: 1 | AB51: 0 | AC51: 0 | AD51: 0 | AE51: 0 | AF51: NO | AG51: NO
A52: 51 | B52: BTL_356 | C52: Fw | D52: SFar | E52: Porto Covo | F52: 2014-06-16 | G52: 37.8542861° | H52: -008.7933528° | I52: H1 | J52: MHO18670 | K52: Lane2 | L52: CTCTT | M52: 1399906 | N52: 1244947 | O52: 636054 | P52: =(O52/N52)*100 -> 51.09084965 | Q52: x
A53: 52 | B53: BTL_357 | C53: Fw | D53: SFar | E53: Porto Covo | F53: 2014-06-16 | G53: 37.8542861° | H53: -008.7933528° | I53: H3 | J53: MHO18671 | K53: Lane2 | L53: CCTTG | M53: 4576352 | N53: 4431323 | O53: 2658398 | P53: =(O53/N53)*100 -> 59.99106813 | T53: x | U53: H | V53: 0.5811 | W53: 0.4189 | X53: 0 | Y53: 0.50233686 | Z53: 0 | AA53: 0.03422 | AB53: 0 | AC53: 0.00018 | AD53: 0 | AE53: 0.96559 | AF53: YES except with Central near | AG53: NO
A54: 53 | B54: BTL_358 | C54: Fw | D54: SFar | E54: Porto Covo | F54: 2014-06-16 | G54: 37.8542861° | H54: -008.7933528° | I54: H1 | J54: MHO18672 | K54: Lane2 | L54: CACAG | M54: 7852030 | N54: 7596370 | O54: 4624002 | P54: =(O54/N54)*100 -> 60.87120559 | U54: W | V54: 1 | W54: 0 | X54: 0 | Y54: 0.6222051 | Z54: 0 | AA54: 1 | AB54: 0 | AC54: 0 | AD54: 0 | AE54: 0 | AF54: NO | AG54: NO
A55: 54 | B55: BT_325 | C55: Fw | D55: CH | E55: North; Commercial – Biobest | F55: 2014-04-22 | I55: H1 | J55: MHO18608 | K55: Lane1 | L55: CGATA | M55: 7829776 | N55: 7560911 | O55: 4662706 | P55: =(O55/N55)*100 -> 61.66857406 | U55: C | V55: 0.001 | W55: 0.999 | X55: 0 | Y55: 0.1686651 | Z55: 1 | AA55: 0 | AB55: 0 | AC55: 0 | AD55: 0 | AE55: 0
A56: 55 | B56: BT_342 | C56: Fw | D56: CH | E56: North; Commercial – Biobest | F56: 2014-06-19 | I56: H1 | J56: MHO18611 | K56: Lane1 | L56: CTAGG | M56: 1107594 | N56: 1058366 | O56: 627384 | P56: =(O56/N56)*100 -> 59.27854825 | Q56: x
A57: 56 | B57: BT_405 | C57: Fw | D57: CH | E57: North; Commercial – Agrobio | F57: 2014-08-29 | I57: H1 | J57: MHO18613 | K57: Lane1 | L57: GCGCC | M57: 7767290 | N57: 7577231 | O57: 4804882 | P57: =(O57/N57)*100 -> 63.41210925 | U57: C | V57: 0.1457 | W57: 0.8543 | X57: 0 | Y57: 0.159408755 | Z57: 0.99963 | AA57: 0 | AB57: 0 | AC57: 0 | AD57: 0.00037 | AE57: 0
A58: 57 | B58: BT_408 | C58: Fw | D58: CH | E58: North; Commercial – Natupol- Koppert | F58: 2014-08-29 | I58: H3 | J58: MHO18614 | K58: Lane1 | L58: GAAGC | M58: 11032336 | N58: 10760228 | O58: 6589662 | P58: =(O58/N58)*100 -> 61.24091423 | U58: C | V58: 0 | W58: 1 | X58: 0 | Y58: 0.138293835 | Z58: 0.99999 | AA58: 0 | AB58: 0 | AC58: 0 | AD58: 1e-05 | AE58: 0
A59: 58 | B59: BT_410 | C59: Fw | D59: CH | E59: North; Commercial – Syngenta | F59: 2014-08-29 | I59: H1 | J59: MHO18615 | K59: Lane1 | L59: CGGCG | M59: 7503304 | N59: 7341277 | O59: 4572894 | P59: =(O59/N59)*100 -> 62.29017104 | U59: C | V59: 0.001 | W59: 0.999 | X59: 0 | Y59: 0.200328015 | Z59: 1 | AA59: 0 | AB59: 0 | AC59: 0 | AD59: 0 | AE59: 0
A60: 59 | B60: BT_413 | C60: Fw | D60: CH | E60: North; Commercial – Bombusol- Koppert | F60: 2014-08-29 | I60: H3 | J60: MHO18616 | K60: Lane1 | L60: GCATT | M60: 9494636 | N60: 9092623 | O60: 5585954 | P60: =(O60/N60)*100 -> 61.43391186 | U60: C | V60: 0 | W60: 1 | X60: 0 | Y60: 0.053016265 | Z60: 0.99995 | AA60: 0 | AB60: 0 | AC60: 0 | AD60: 5e-05 | AE60: 0
A61: 60 | B61: BT_416 | C61: Fw | D61: CH | E61: North; Commercial – Beeline – Syngenta | F61: 2014-08-29 | I61: H3 | J61: MHO18617 | K61: Lane1 | L61: GAGAT | M61: 10585548 | N61: 10101825 | O61: 6179700 | P61: =(O61/N61)*100 -> 61.17409478 | U61: C | V61: 0.2953 | W61: 0.7037 | X61: 0.001 | Y61: 0.153103795 | Z61: 0.86363 | AA61: 0 | AB61: 0 | AC61: 0 | AD61: 0.13637 | AE61: 0
A62: 61 | B62: BT_419 | C62: Fw | D62: CH | E62: North; Commercial – Agrobio | F62: 2014-08-29 | I62: H1 | J62: MHO18618 | K62: Lane1 | L62: GGAAG | M62: 11279388 | N62: 10996925 | O62: 6844014 | P62: =(O62/N62)*100 -> 62.2357068 | U62: C | V62: 0.1289 | W62: 0.8711 | X62: 0 | Y62: 0.10074959 | Z62: 0.96505 | AA62: 0 | AB62: 0 | AC62: 0 | AD62: 0.03495 | AE62: 0
A63: 62 | B63: BT_425 | C63: Fw | D63: CH | E63: South; Commercial – Polibiol /Liscampo | F63: 2014-08-27 | I63: H1 | J63: MHO18619 | K63: Lane2 | L63: CAACT | M63: 2785736 | N63: 2689174 | O63: 1600630 | P63: =(O63/N63)*100 -> 59.52125076 | Q63: x
A64: 63 | B64: BT_426 | C64: Fw | D64: CH | E64: South; Commercial – Beeline – Syngenta | F64: 2014-08-28 | I64: H1 | J64: MHO18620 | K64: Lane2 | L64: TTTTA | M64: 7583796 | N64: 7399617 | O64: 4405076 | P64: =(O64/N64)*100 -> 59.53113519 | U64: C | V64: 0 | W64: 1 | X64: 0 | Y64: 0.12161503 | Z64: 1 | AA64: 0 | AB64: 0 | AC64: 0 | AD64: 0 | AE64: 0
A65: 64 | B65: BT_428 | C65: Fw | D65: CH | E65: South; Commercial – Natupol – Koppert | F65: 2014-08-29 | I65: H3 | J65: MHO18621 | K65: Lane2 | L65: TGCAA | M65: 1474310 | N65: 1427073 | O65: 932904 | P65: =(O65/N65)*100 -> 65.37184853 | Q65: x
A66: 65 | B66: BTL_084 | C66: FQ | D66: Blucorum | E66: Burgos, Spain | F66: 2014-05-15 | G66: 42.1366667° | H66: -003.1935000° | I66: B. lucorum | J66: MHO18628 | K66: Lane1 | L66: GGCCT | M66: 5369388 | N66: 4996943 | O66: 2764028 | P66: =(O66/N66)*100 -> 55.31437921 | U66: Bl | V66: 0 | W66: 0 | X66: 1
A67: 66 | B67: BTL_146 | C67: Fw | D67: Blucorum | E67: Rascafria, Spain | F67: 2014-05-26 | G67: 40.8785833° | H67: -003.8478056° | I67: B. lucorum | J67: MHO18629 | K67: Lane1 | L67: TGCAA | M67: 1606326 | N67: 1471245 | O67: 821262 | P67: =(O67/N67)*100 -> 55.82088639 | U67: Bl | V67: 0.5908 | W67: 0.1403 | X67: 0.2689
